bitfinex-derivatives/quotes_BTCF0:USTF0_20240817
["timestamp","ask_amount","ask_price","bid_price","bid_amount"]
[1723927085535,0.06309,59430.0,59429.0,0.00025233]
[1723927085746,0.72789,59430.0,59429.0,0.00025233]
[1723927086030,1.12789,59430.0,59429.0,0.00025233]
[1723927087136,1.13289,59430.0,59429.0,0.00025233]
[1723927087433,1.13589,59430.0,59429.0,0.00025233]
[1723927094837,0.008,59430.0,59429.0,0.15634333]
[1723927095746,0.07109,59430.0,59429.0,0.06334333]
[1723927101947,0.07109,59430.0,59429.0,0.42414333]
[1723927103741,0.07109,59430.0,59429.0,0.06334333]
[1723927104044,0.07109,59430.0,59429.0,0.42414333]
[1723927104951,0.07109,59430.0,59429.0,0.06334333]
[1723927110845,0.07109,59430.0,59429.0,0.42414333]
[1723927111654,0.07109,59430.0,59429.0,0.06334333]
[1723927111953,0.07109,59430.0,59429.0,0.42414333]
[1723927112753,0.16409,59430.0,59429.0,0.42414333]
[1723927114852,0.16409,59430.0,59429.0,0.00025233]
[1723927115053,0.80889,59430.0,59429.0,0.00025233]
[1723927115253,0.80889,59430.0,59429.0,0.05073218]
[1723927115464,0.063094,59427.0,59426.0,0.063094]
[1723927115664,0.156094,59427.0,59426.0,0.10013017]
[1723927116359,0.156094,59427.0,59426.0,0.063094]
[1723927116562,0.158094,59427.0,59426.0,0.063094]
[1723927118159,0.158094,59427.0,59426.0,0.064094]
[1723927124669,0.158094,59427.0,59426.0,0.001]
[1723927124864,0.158094,59427.0,59426.0,0.03803582]
[1723927125259,0.158094,59427.0,59426.0,0.03803616]
[1723927125556,0.158094,59427.0,59426.0,0.001]
[1723927125756,0.063095,59426.0,59421.0,0.00025233]
[1723927125956,0.219198,59422.0,59421.0,0.00025233]
[1723927127066,0.156099,59422.0,59421.0,0.00025233]
[1723927127867,0.219198,59422.0,59421.0,0.00025233]
[1723927128061,0.063107,59414.0,59413.0,0.063108]
[1723927128262,0.156107,59414.0,59413.0,0.07273253]
[1723927129562,0.157107,59414.0,59413.0,0.08373253]
[1723927129762,0.158107,59414.0,59413.0,0.09673253]
[1723927131165,0.158107,59414.0,59413.0,0.03362453]
[1723927132965,0.065107,59414.0,59413.0,0.03362453]
[1723927139672,0.158107,59414.0,59413.0,0.03362453]
[1723927142367,0.158107,59414.0,59413.0,0.024]
[1723927143472,0.221214,59414.0,59413.0,0.024]
[1723927148981,0.391214,59414.0,59413.0,0.024]
[1723927151273,0.063114,59408.0,59407.0,0.063115]
[1723927151472,0.156114,59408.0,59407.0,0.063115]
[1723927152671,0.157114,59408.0,59407.0,0.075115]
[1723927153784,0.158114,59408.0,59407.0,0.077115]
[1723927159286,0.158114,59408.0,59407.0,0.437915]
[1723927161483,0.158114,59408.0,59407.0,0.077115]
[1723927161990,0.158114,59408.0,59407.0,0.014]
[1723927170897,0.221228,59408.0,59407.0,0.014]
[1723927173091,0.284342,59408.0,59407.0,0.014]
[1723927173297,0.284342,59408.0,59401.0,0.08411562]
[1723927173298,0.12624,59402.0,59401.0,0.08411562]
[1723927173495,0.36924,59402.0,59401.0,0.08411562]
[1723927173701,0.15612,59402.0,59401.0,0.08411562]
[1723927174896,0.15712,59402.0,59401.0,0.08611562]
[1723927175491,0.15812,59402.0,59401.0,0.08611562]
[1723927175893,0.15812,59402.0,59401.0,0.002]
[1723927178791,0.06512,59402.0,59401.0,0.002]
[1723927180292,0.06512,59402.0,59401.0,0.065121]
[1723927183995,0.002,59402.0,59401.0,0.158121]
[1723927186101,0.002,59402.0,59401.0,0.19516969]
[1723927186700,0.002,59402.0,59401.0,0.158121]
[1723927187002,0.002,59402.0,59401.0,0.518921]
[1723927187797,0.002,59402.0,59401.0,0.55596922]
[1723927189010,0.002,59402.0,59401.0,0.518921]
[1723927190097,0.002,59402.0,59401.0,0.55596903]
[1723927190805,0.002,59402.0,59401.0,0.59301694]
[1723927191099,0.002,59402.0,59401.0,0.55596906]
[1723927191309,0.002,59402.0,59401.0,0.63006512]
[1723927191603,0.002,59402.0,59401.0,0.55596906]
[1723927191807,0.002,59402.0,59401.0,0.5930174]
[1723927192404,0.002,59402.0,59401.0,0.63006521]
[1723927192908,0.002,59402.0,59401.0,0.80542669]
[1723927193103,0.002,59402.0,59401.0,1.26333866]
[1723927195913,0.002,59402.0,59401.0,1.2262906]
[1723927196502,0.002,59402.0,59401.0,1.31038503]
[1723927196705,0.002,59402.0,59401.0,1.310383]
[1723927196906,0.002,59402.0,59401.0,1.18215082]
[1723927197211,0.002,59402.0,59401.0,1.09805639]
[1723927198514,0.002,59402.0,59401.0,0.59301639]
[1723927199612,0.002,59402.0,59401.0,0.67710993]
[1723927200115,0.002,59402.0,59401.0,0.5930155]
[1723927200705,0.002,59402.0,59401.0,0.67710993]
[1723927201105,0.002,59402.0,59401.0,0.5930155]
[1723927202501,0.002,59402.0,59401.0,0.67710999]
[1723927203005,0.002,59402.0,59401.0,0.59301522]
[1723927203207,0.063115,59408.0,59407.0,0.063115]
[1723927203402,0.063115,59408.0,59407.0,0.423915]
[1723927203803,0.0498,59409.0,59408.0,0.063114]
[1723927204107,0.1428,59409.0,59408.0,0.063114]
[1723927204624,0.1428,59409.0,59408.0,0.0727029]
[1723927205218,0.205913,59409.0,59408.0,0.0727029]
[1723927206214,0.207913,59409.0,59408.0,0.064114]
[1723927211911,0.21783267,59409.0,59408.0,0.064114]
[1723927212316,0.37783267,59409.0,59408.0,0.064114]
[1723927215322,0.367913,59409.0,59408.0,0.064114]
[1723927231235,0.367913,59409.0,59408.0,0.001]
[1723927236627,0.367913,59409.0,59408.0,0.05150964]
[1723927237130,0.367913,59409.0,59408.0,0.001]
[1723927238029,0.367913,59409.0,59408.0,0.05150952]
[1723927238335,0.367913,59409.0,59408.0,0.001]
[1723927239432,0.063117,59405.0,59404.0,0.05051456]
[1723927239636,0.063117,59405.0,59401.0,0.06733713]
[1723927239637,0.063119,59403.0,59402.0,0.05051408]
[1723927239838,0.06312,59402.0,59401.0,0.05051408]
[1723927240035,0.063122,59400.0,59399.0,0.07722056]
[1723927240335,0.063122,59400.0,59399.0,0.04693607]
[1723927240940,0.063122,59400.0,59399.0,0.00988343]
[1723927241123,0.063122,59400.0,59399.0,0.03705218]
[1723927241321,0.063123,59399.0,59398.0,0.49218113]
[1723927241522,0.063123,59399.0,59398.0,0.4609763]
[1723927242142,0.063123,59399.0,59398.0,0.57514061]
[1723927242334,0.063123,59399.0,59398.0,0.57509829]
[1723927242635,0.063123,59399.0,59398.0,0.57509329]
[1723927243037,0.064123,59399.0,59398.0,0.57509329]
[1723927243634,0.065123,59399.0,59398.0,0.57509329]
[1723927244428,0.065123,59399.0,59398.0,0.53804211]
[1723927244633,0.065123,59399.0,59398.0,0.53804169]
[1723927244839,0.065123,59399.0,59398.0,0.57509305]
[1723927245440,0.065123,59399.0,59398.0,0.57509277]
[1723927246127,0.065123,59399.0,59398.0,0.53804129]
[1723927246338,0.065123,59399.0,59398.0,0.57509282]
[1723927246536,0.065123,59399.0,59398.0,0.47075148]
[1723927249141,0.065123,59399.0,59398.0,0.4337]
[1723927249334,0.063125,59397.0,59395.0,0.06728981]
[1723927249539,0.4084,59398.0,59395.0,0.05045616]
[1723927249728,0.4084,59398.0,59388.0,0.13219443]
[1723927249729,0.063133,59390.0,59389.0,0.05045616]
[1723927249932,0.063134,59389.0,59388.0,0.111235]
[1723927250327,0.063134,59389.0,59388.0,0.12104247]
[1723927250541,0.063134,59389.0,59388.0,0.17146482]
[1723927250738,0.063134,59389.0,59388.0,0.15810042]
[1723927250945,0.063134,59389.0,59388.0,0.12104247]
[1723927251236,0.064134,59389.0,59388.0,0.12104247]
[1723927251545,0.065134,59389.0,59388.0,0.17144978]
[1723927252135,0.065134,59389.0,59388.0,0.06021478]
[1723927252536,0.065134,59389.0,59388.0,0.00980747]
[1723927252743,0.002,59389.0,59388.0,0.063135]
[1723927252936,0.002,59389.0,59388.0,0.11354231]
[1723927254540,0.002,59389.0,59388.0,0.063135]
[1723927255140,0.002,59389.0,59388.0,0.423935]
[1723927257237,0.002,59389.0,59388.0,0.063135]
[1723927257444,0.002,59389.0,59388.0,0.423935]
[1723927258240,0.002,59389.0,59388.0,0.063135]
[1723927258437,0.002,59389.0,59388.0,0.423935]
[1723927266248,0.002,59389.0,59388.0,0.47434231]
[1723927268356,0.002,59389.0,59388.0,0.063135]
[1723927268749,0.002,59389.0,59388.0,0.423935]
[1723927269649,0.002,59389.0,59388.0,0.063135]
[1723927269843,0.002,59389.0,59388.0,0.423935]
[1723927274453,0.002,59389.0,59388.0,0.49122481]
[1723927275649,0.002,59389.0,59388.0,0.423935]
[1723927276052,0.002,59389.0,59388.0,0.063135]
[1723927276247,0.002,59389.0,59388.0,0.423935]
[1723927278265,0.0942,59389.0,59388.0,0.423935]
[1723927279767,0.1393,59389.0,59388.0,0.423935]
[1723927281070,0.342434,59389.0,59388.0,0.3608]
[1723927282368,0.342434,59389.0,59386.0,0.00988366]
[1723927282568,0.063142,59381.0,59380.0,0.05052754]
[1723927282759,0.423942,59381.0,59379.0,0.05052754]
[1723927282954,0.063146,59378.0,59377.0,0.05052754]
[1723927283157,0.156146,59378.0,59377.0,0.05052754]
[1723927283357,0.156146,59378.0,59374.0,0.05052754]
[1723927283358,0.063149,59375.0,59374.0,0.05052754]
[1723927283561,0.42411547,59375.0,59374.0,0.05052754]
[1723927284366,0.063151,59373.0,59372.0,0.05052754]
[1723927285571,0.063151,59373.0,59371.0,0.12368344]
[1723927286264,0.063151,59373.0,59371.0,0.21668344]
[1723927286575,0.064151,59373.0,59371.0,0.1661559]
[1723927286973,0.002,59373.0,59372.0,0.063152]
[1723927287267,0.002,59373.0,59372.0,0.11367954]
[1723927287977,0.00016647,59375.0,59374.0,0.06315]
[1723927288273,0.00016647,59375.0,59374.0,0.15615]
[1723927289570,0.00116647,59375.0,59374.0,0.15615]
[1723927289967,0.00216647,59375.0,59374.0,0.15615]
[1723927292978,0.00216647,59375.0,59374.0,0.06315]
[1723927293479,0.00216647,59375.0,59374.0,0.15615]
[1723927294578,0.09516647,59375.0,59374.0,0.06315]
[1723927295967,0.00216647,59375.0,59374.0,0.15615]
[1723927301875,0.00216647,59375.0,59374.0,0.06315]
[1723927302074,0.00216647,59375.0,59374.0,0.15615]
[1723927309473,0.00216647,59375.0,59374.0,0.20667754]
[1723927310580,0.00216647,59375.0,59374.0,0.15615]
[1723927315892,0.00216647,59375.0,59374.0,0.2193]
[1723927317395,0.00025255,59386.0,59384.0,0.063139]
[1723927317582,0.00025255,59386.0,59385.0,0.423938]
[1723927317783,0.00025255,59386.0,59385.0,0.61534729]
[1723927318192,1e-08,59386.0,59385.0,0.61534729]
[1723927318395,1e-08,59386.0,59385.0,0.423938]
[1723927320489,0.09300001,59386.0,59381.0,0.08409019]
[1723927320686,0.093,59382.0,59381.0,0.0672384]
[1723927320889,0.156141,59382.0,59381.0,0.063142]
[1723927321088,0.156141,59382.0,59381.0,0.11357322]
[1723927321387,0.156141,59382.0,59381.0,0.063142]
[1723927321992,0.157141,59382.0,59381.0,0.063142]
[1723927322393,0.157141,59382.0,59381.0,0.065142]
[1723927322789,0.064141,59382.0,59381.0,0.065142]
[1723927329999,0.001,59382.0,59381.0,0.065142]
[1723927336905,0.064141,59382.0,59381.0,0.065142]
[1723927345014,0.001,59382.0,59381.0,0.425942]
[1723927345213,0.001,59382.0,59381.0,0.4763981]
[1723927345405,0.001,59382.0,59381.0,0.425942]
[1723927346006,0.001,59382.0,59381.0,0.424942]
[1723927346312,0.06314,59384.0,59381.0,0.3618]
[1723927346499,0.06314,59384.0,59383.0,0.06314]
[1723927347515,0.06414,59384.0,59383.0,0.06314]
[1723927348501,0.06414,59384.0,59383.0,0.11360723]
[1723927349210,0.06414,59384.0,59383.0,0.11460723]
[1723927349211,0.06314,59384.0,59383.0,0.11460723]
[1723927349417,0.06314,59384.0,59383.0,0.06414]
[1723927350008,0.06314,59384.0,59383.0,0.1313784]
[1723927352420,0.06314,59384.0,59383.0,0.06414]
[1723927354714,1e-08,59386.0,59385.0,0.063138]
[1723927354912,1e-08,59386.0,59385.0,0.20665152]
[1723927355115,1e-08,59386.0,59385.0,0.156138]
[1723927356121,0.00200001,59386.0,59385.0,0.156138]
[1723927356422,0.00300001,59386.0,59385.0,0.156138]
[1723927357322,0.00200001,59386.0,59385.0,0.156138]
[1723927357821,0.00200001,59386.0,59385.0,0.205838]
[1723927358214,1e-08,59386.0,59385.0,0.205838]
[1723927358415,0.00100001,59386.0,59385.0,0.205838]
[1723927363019,0.00100001,59386.0,59385.0,0.213584]
[1723927368829,0.00100001,59386.0,59385.0,0.263284]
[1723927369019,0.00100001,59386.0,59385.0,0.34624495]
[1723927369431,0.00100001,59386.0,59385.0,0.41348335]
[1723927373315,0.00100001,59386.0,59385.0,0.41348317]
[1723927377131,0.00100001,59386.0,59385.0,0.3764224]
[1723927378037,0.00100001,59386.0,59385.0,0.47662117]
[1723927379235,0.00100001,59386.0,59385.0,0.4395604]
[1723927379619,0.00100001,59386.0,59385.0,0.3764224]
[1723927380630,0.00100001,59386.0,59385.0,0.41348317]
[1723927380827,0.00100001,59386.0,59385.0,0.17518317]
[1723927381030,0.09400001,59386.0,59385.0,0.1381224]
[1723927381233,0.09400001,59386.0,59383.0,0.0672384]
[1723927381436,0.4538,59384.0,59383.0,0.0672384]
[1723927381635,0.06314,59383.0,59382.0,0.07515743]
[1723927381946,0.06314,59383.0,59382.0,0.0672384]
[1723927383044,0.06414,59383.0,59382.0,0.0672384]
[1723927383542,0.06314,59383.0,59382.0,0.0672384]
[1723927383941,0.06314,59383.0,59382.0,0.0682384]
[1723927384440,0.06314,59383.0,59382.0,0.001]
[1723927384633,0.06314,59383.0,59382.0,0.05151185]
[1723927386134,0.06314,59383.0,59382.0,0.064141]
[1723927387340,0.06314,59383.0,59382.0,0.10120468]
[1723927390149,0.06314,59383.0,59382.0,0.064141]
[1723927390450,0.06314,59383.0,59382.0,0.10120446]
[1723927398256,0.06314,59383.0,59382.0,0.064141]
[1723927398441,0.06314,59383.0,59382.0,0.10120446]
[1723927398636,0.06314,59383.0,59382.0,0.064141]
[1723927400249,0.06314,59383.0,59382.0,0.11462872]
[1723927401647,0.15614,59383.0,59382.0,0.11462872]
[1723927403252,0.15614,59383.0,59382.0,0.064141]
[1723927404759,0.15614,59383.0,59382.0,0.10120463]
[1723927409262,0.15614,59383.0,59382.0,0.16844303]
[1723927411156,0.15614,59383.0,59382.0,0.1313794]
[1723927411363,0.15614,59383.0,59382.0,0.16844292]
[1723927414362,0.15614,59383.0,59382.0,0.1313794]
[1723927419659,0.06314,59383.0,59382.0,0.1313794]
[1723927421575,0.06314,59383.0,59382.0,0.064141]
[1723927423964,0.06314,59383.0,59382.0,0.1313794]
[1723927427471,0.06314,59383.0,59382.0,0.16844291]
[1723927428270,0.06314,59383.0,59382.0,0.064141]
[1723927435176,0.06314,59383.0,59382.0,0.10120463]
[1723927436679,0.06314,59383.0,59382.0,0.13826709]
[1723927436875,0.06314,59383.0,59382.0,0.10120346]
[1723927437184,0.06314,59383.0,59382.0,0.13826566]
[1723927437381,0.06314,59383.0,59382.0,0.2056449]
[1723927438183,0.06314,59383.0,59382.0,0.2056453]
[1723927438373,0.06314,59383.0,59382.0,0.20564572]
[1723927440873,0.06314,59383.0,59382.0,0.2056457]
[1723927441275,0.06314,59383.0,59382.0,0.20564575]
[1723927442075,0.06314,59383.0,59382.0,0.16858302]
[1723927442283,0.06314,59383.0,59382.0,0.20564617]
[1723927443176,0.27628,59383.0,59382.0,0.001]
[1723927443371,0.78148,59383.0,59382.0,0.001]
[1723927443581,0.78950848,59383.0,59382.0,0.001]
[1723927444083,0.063142,59381.0,59380.0,0.00025255]
[1723927444291,0.686942,59381.0,59380.0,0.00025255]
[1723927444785,0.750084,59381.0,59380.0,1e-08]
[1723927445270,0.687942,59381.0,59380.0,0.00100001]
[1723927451277,0.327142,59381.0,59380.0,0.00100001]
[1723927451477,0.687942,59381.0,59380.0,0.00100001]
[1723927452580,0.327142,59381.0,59380.0,0.00100001]
[1723927452976,0.687942,59381.0,59380.0,0.00100001]
[1723927459785,0.063147,59377.0,59376.0,0.112448]
[1723927460091,0.156147,59377.0,59376.0,0.112448]
[1723927460781,0.157147,59377.0,59376.0,0.112448]
[1723927460982,0.517947,59377.0,59376.0,0.112448]
[1723927462094,0.518947,59377.0,59376.0,0.112448]
[1723927463483,0.52714998,59377.0,59376.0,0.112448]
[1723927464990,0.16634998,59377.0,59376.0,0.112448]
[1723927465190,0.69714998,59377.0,59376.0,0.0493]
[1723927467494,0.33634998,59377.0,59376.0,0.0493]
[1723927467693,0.69714998,59377.0,59376.0,0.0493]
[1723927468395,0.60414998,59377.0,59376.0,0.0493]
[1723927468596,0.425947,59377.0,59376.0,0.0493]
[1723927470186,0.425947,59377.0,59376.0,0.112448]
[1723927470187,0.518947,59377.0,59376.0,0.112448]
[1723927470997,0.158147,59377.0,59376.0,0.112448]
[1723927471202,0.518947,59377.0,59376.0,0.112448]
[1723927473602,0.158147,59377.0,59376.0,0.112448]
[1723927474004,0.518947,59377.0,59376.0,0.112448]
[1723927475912,0.518947,59377.0,59376.0,0.16298143]
[1723927476102,0.518947,59377.0,59376.0,0.112448]
[1723927476806,0.518947,59377.0,59376.0,0.16298143]
[1723927479700,0.518947,59377.0,59376.0,0.0493]
[1723927481300,0.518947,59377.0,59374.0,0.11368343]
[1723927481301,0.063149,59375.0,59374.0,0.11368343]
[1723927481507,0.063149,59375.0,59374.0,0.06315]
[1723927481809,0.063149,59375.0,59374.0,0.11368343]
[1723927482808,0.065149,59375.0,59374.0,0.11368343]
[1723927484704,0.425949,59375.0,59374.0,0.11368343]
[1723927485394,0.065149,59375.0,59374.0,0.11368343]
[1723927485604,0.425949,59375.0,59374.0,0.11368343]
[1723927487308,0.065149,59375.0,59374.0,0.11368343]
[1723927487608,0.425949,59375.0,59374.0,0.11368343]
[1723927494011,0.063151,59373.0,59372.0,0.00835064]
[1723927494219,0.156151,59373.0,59372.0,0.03706975]
[1723927495814,0.157151,59373.0,59372.0,0.03706975]
[1723927496115,0.158151,59373.0,59372.0,0.03706975]
[1723927496324,0.221302,59373.0,59372.0,0.03706975]
[1723927496507,0.221302,59373.0,59364.0,0.06737923]
[1723927496508,0.189477,59365.0,59364.0,0.06737923]
[1723927496708,0.6238,59365.0,59360.0,0.05053444]
[1723927496911,0.063166,59359.0,59358.0,0.06737923]
[1723927497209,0.063167,59358.0,59357.0,0.469068]
[1723927497409,0.063167,59358.0,59357.0,0.14534417]
[1723927497610,0.063167,59358.0,59357.0,0.108268]
[1723927498211,0.063167,59358.0,59357.0,0.15873543]
[1723927498411,0.064167,59358.0,59357.0,0.15873543]
[1723927498717,0.064167,59358.0,59357.0,0.0451]
[1723927499813,0.065167,59358.0,59357.0,0.0451]
[1723927500418,0.3608,59365.0,59357.0,0.0451]
[1723927500419,0.063157,59368.0,59357.0,1.013668]
[1723927500720,0.063156,59368.0,59367.0,0.063157]
[1723927501518,0.063158,59366.0,59362.0,0.093]
[1723927501714,0.156158,59366.0,59362.0,0.093]
[1723927503119,0.1530506,59366.0,59365.0,0.063159]
[1723927503623,0.1540506,59366.0,59365.0,0.063159]
[1723927503822,0.1550506,59366.0,59365.0,0.063159]
[1723927504219,0.1550506,59366.0,59365.0,0.064159]
[1723927504725,0.0620506,59366.0,59365.0,0.064159]
[1723927505526,0.05875244,59366.0,59365.0,0.064159]
[1723927508621,0.002,59366.0,59365.0,0.064159]
[1723927510429,0.002,59366.0,59365.0,1.456637]
[1723927510625,0.3608,59376.0,59369.0,0.063155]
[1723927510926,0.3608,59376.0,59369.0,0.20658375]
[1723927511117,0.3608,59376.0,59369.0,0.661475]
[1723927512015,0.00225255,59370.0,59369.0,0.79300923]
[1723927512324,0.299022,59381.0,59376.0,0.063148]
[1723927512621,0.299022,59381.0,59380.0,0.063144]
[1723927512828,0.299022,59381.0,59380.0,0.156144]
[1723927513928,0.31523663,59384.0,59383.0,0.06314]
[1723927514128,0.31523663,59384.0,59383.0,0.15614]
[1723927514322,0.31523663,59384.0,59383.0,0.06314]
[1723927515427,0.00025255,59386.0,59383.0,0.093]
[1723927515619,0.00025255,59386.0,59385.0,0.126276]
[1723927515821,0.00025255,59386.0,59385.0,0.063138]
[1723927516021,0.00025255,59386.0,59385.0,0.11354625]
[1723927516433,0.00025255,59386.0,59385.0,0.063138]
[1723927516832,0.00225255,59386.0,59385.0,0.063138]
[1723927517225,0.00225255,59386.0,59385.0,0.156138]
[1723927518037,0.00225255,59386.0,59385.0,0.16455998]
[1723927519536,0.00225255,59386.0,59385.0,0.27449798]
[1723927519735,1e-08,59386.0,59385.0,0.27449798]
[1723927520438,1e-08,59386.0,59385.0,1.17965798]
[1723927520629,1e-08,59386.0,59385.0,1.24279598]
[1723927520830,1e-08,59386.0,59385.0,1.29305999]
[1723927521020,1e-08,59386.0,59385.0,1.24279598]
[1723927521429,1e-08,59386.0,59385.0,1.29303299]
[1723927521627,1e-08,59386.0,59385.0,1.29303162]
[1723927522040,1e-08,59386.0,59385.0,1.24279598]
[1723927522231,1e-08,59386.0,59385.0,1.29302631]
[1723927522534,0.23584,59410.0,59396.0,0.063126]
[1723927522838,0.063101,59421.0,59407.0,0.063114]
[1723927522839,0.093,59408.0,59407.0,0.063114]
[1723927523535,0.093,59408.0,59403.0,0.063119]
[1723927523746,0.093,59406.0,59403.0,0.063119]
[1723927524042,0.0453,59410.0,59403.0,0.063119]
[1723927524228,0.063117,59406.0,59403.0,0.063119]
[1723927524425,0.063117,59406.0,59404.0,0.063118]
[1723927524640,0.063117,59405.0,59404.0,0.063118]
[1723927527036,0.077117,59405.0,59404.0,0.063118]
[1723927527737,0.063119,59403.0,59402.0,0.00025255]
[1723927529242,0.063119,59403.0,59402.0,0.06337255]
[1723927529636,0.077119,59403.0,59402.0,0.06337255]
[1723927530140,0.091119,59403.0,59402.0,0.06337255]
[1723927543742,0.091119,59403.0,59393.0,0.063129]
[1723927543743,0.063124,59398.0,59393.0,0.063129]
[1723927543942,0.0931,59394.0,59393.0,0.063129]
[1723927544153,0.063131,59392.0,59390.0,0.3608]
[1723927545244,0.063131,59392.0,59391.0,0.063132]
[1723927545748,0.069131,59392.0,59391.0,0.063132]
[1723927546347,0.074131,59392.0,59391.0,0.063132]
[1723927546851,0.075131,59392.0,59391.0,0.063132]
[1723927547446,0.069131,59392.0,59391.0,0.063132]
[1723927547654,0.076131,59392.0,59391.0,0.063132]
[1723927548251,0.076131,59392.0,59391.0,0.11334339]
[1723927549349,0.076131,59392.0,59391.0,0.063132]
[1723927551147,0.013,59392.0,59391.0,1.264284]
[1723927551360,0.013,59392.0,59391.0,1.360784]
[1723927551752,0.013,59392.0,59391.0,1.44487419]
[1723927553149,0.013,59392.0,59391.0,1.57312058]
[1723927553355,0.013,59392.0,59391.0,1.48903039]
[1723927553557,0.013,59392.0,59391.0,1.57309691]
[1723927553756,0.013,59392.0,59391.0,1.48903039]
[1723927554450,0.013,59392.0,59391.0,1.48902999]
[1723927555463,0.013,59392.0,59391.0,1.55216199]
[1723927555763,0.00025255,59397.0,59396.0,0.063126]
[1723927555966,0.00025255,59397.0,59396.0,0.423926]
[1723927556469,0.00025255,59397.0,59396.0,0.656826]
[1723927556665,0.00025255,59397.0,59396.0,0.719952]
[1723927557075,0.01225255,59397.0,59396.0,1.625032]
[1723927557955,0.02425255,59397.0,59396.0,1.626032]
[1723927558154,0.02425255,59397.0,59396.0,1.74715037]
[1723927558355,0.02425255,59397.0,59396.0,1.78419774]
[1723927558764,0.02425255,59397.0,59396.0,1.66307989]
[1723927559255,0.02425255,59397.0,59396.0,1.70012803]
[1723927561660,0.063114,59408.0,59407.0,0.063115]
[1723927563266,0.077114,59408.0,59407.0,0.063115]
[1723927563860,0.082114,59408.0,59407.0,0.064115]
[1723927566363,0.082114,59408.0,59407.0,0.065115]
[1723927569868,0.082114,59408.0,59407.0,0.158215]
[1723927591289,0.082114,59408.0,59407.0,0.20871702]
[1723927600185,0.082114,59408.0,59407.0,0.158215]
[1723927608408,0.082114,59408.0,59407.0,0.20871702]
[1723927608598,0.082114,59408.0,59407.0,0.158215]
[1723927608801,0.082114,59408.0,59407.0,0.19526326]
[1723927610295,0.082114,59408.0,59407.0,0.20873215]
[1723927610700,0.082114,59408.0,59407.0,0.158215]
[1723927610900,0.082114,59408.0,59407.0,0.11563207]
[1723927611799,0.082114,59408.0,59407.0,0.065115]
[1723927614203,0.082114,59408.0,59407.0,0.158215]
[1723927615110,0.082114,59408.0,59407.0,0.20873207]
[1723927615309,0.082114,59408.0,59407.0,0.158215]
[1723927619812,0.222114,59408.0,59402.0,1e-08]
[1723927620028,0.580138,59403.0,59402.0,1e-08]
[1723927620518,0.517019,59403.0,59402.0,1e-08]
[1723927621614,0.594138,59403.0,59402.0,0.00100001]
[1723927621815,0.531019,59403.0,59402.0,0.00200001]
[1723927622408,0.170219,59403.0,59402.0,0.00200001]
[1723927622610,0.537019,59403.0,59402.0,0.00200001]
[1723927622810,0.537019,59403.0,59386.0,0.05051707]
[1723927623006,0.063131,59392.0,59391.0,0.03705347]
[1723927623316,0.063131,59392.0,59391.0,0.0931]
[1723927624017,0.3608,59397.0,59393.0,0.06313]
[1723927624310,0.3608,59397.0,59396.0,0.0931]
[1723927624311,0.06337755,59397.0,59396.0,0.0931]
[1723927625211,0.06837755,59397.0,59396.0,0.0931]
[1723927625920,0.06837755,59397.0,59396.0,0.0941]
[1723927625921,0.07137755,59397.0,59396.0,0.0941]
[1723927626310,0.07837755,59397.0,59396.0,0.0951]
[1723927627609,0.08620826,59397.0,59396.0,0.0951]
[1723927630820,0.44700826,59397.0,59396.0,0.002]
[1723927636226,0.08620826,59397.0,59396.0,0.002]
[1723927637021,0.44700826,59397.0,59396.0,0.002]
[1723927637423,0.44700826,59397.0,59396.0,0.0951]
[1723927638215,0.44700826,59397.0,59396.0,0.002]
[1723927640620,0.08620826,59397.0,59396.0,0.002]
[1723927641430,0.44700826,59397.0,59396.0,0.002]
[1723927642626,0.08620826,59397.0,59396.0,0.002]
[1723927642816,0.44700826,59397.0,59396.0,0.002]
[1723927645127,0.08620826,59397.0,59396.0,0.002]
[1723927645432,0.44700826,59397.0,59396.0,0.002]
[1723927656032,0.08620826,59397.0,59396.0,0.002]
[1723927656237,0.44700826,59397.0,59396.0,0.002]
[1723927656731,0.08620826,59397.0,59396.0,0.002]
[1723927656929,0.44700826,59397.0,59396.0,0.002]
[1723927657739,0.43917755,59397.0,59396.0,0.002]
[1723927658639,0.07837755,59397.0,59396.0,0.002]
[1723927659037,0.43917755,59397.0,59396.0,0.002]
[1723927659437,0.07837755,59397.0,59396.0,0.002]
[1723927659642,0.43917755,59397.0,59396.0,0.002]
[1723927661534,0.07837755,59397.0,59396.0,0.002]
[1723927661735,0.43917755,59397.0,59396.0,0.002]
[1723927662936,0.07837755,59397.0,59396.0,0.002]
[1723927663137,0.43917755,59397.0,59396.0,0.002]
[1723927663643,0.07837755,59397.0,59396.0,0.002]
[1723927663839,0.43917755,59397.0,59396.0,0.002]
[1723927664747,0.07837755,59397.0,59396.0,0.002]
[1723927664952,0.43917755,59397.0,59396.0,0.002]
[1723927665243,0.07837755,59397.0,59396.0,0.002]
[1723927665448,0.43917755,59397.0,59396.0,0.002]
[1723927666943,0.07837755,59397.0,59396.0,0.002]
[1723927667149,0.43917755,59397.0,59396.0,0.002]
[1723927667339,0.07837755,59397.0,59396.0,0.002]
[1723927667538,0.43917755,59397.0,59396.0,0.002]
[1723927669440,0.07837755,59397.0,59396.0,0.002]
[1723927669638,0.43917755,59397.0,59396.0,0.158226]
[1723927669840,0.37605255,59397.0,59396.0,0.158226]
[1723927670043,0.01525255,59397.0,59396.0,0.23331158]
[1723927670238,0.01525255,59397.0,59396.0,0.20317759]
[1723927670450,0.01525255,59397.0,59396.0,0.27050333]
[1723927670950,0.01525255,59397.0,59396.0,0.24023]
[1723927671450,0.01525255,59397.0,59396.0,0.30752876]
[1723927672346,0.01525255,59397.0,59396.0,0.30752783]
[1723927674346,0.01525255,59397.0,59396.0,0.24023]
[1723927675553,0.01525255,59397.0,59396.0,0.74530796]
[1723927676453,0.01525255,59397.0,59396.0,0.70825592]
[1723927677351,0.01525255,59397.0,59396.0,0.67120351]